[Event "Titled Tuesday Blitz March 01 Early 2022"]
[White "Sikorova, Olga"]
[Black "Dias, Joao Batista"]
[WhiteFideId "307033"]
[BlackFideId "2108240"]
[WhiteElo "2187"]
[BlackElo "1898"]
[Result "1-0"]
[Round "07"]
[TimeControl "180+1"]
[Date "2022.03.01"]
[WhiteClock "0:02:26"]
[BlackClock "0:01:59"]

1. c4 {[%clk 0:03:00]}  c5 {[%clk 0:02:58]} 2. g3 {[%clk 0:03:00]}  Nf6 {[%clk 0:02:58]} 3. Bg2 {[%clk 0:03:01]}  Nc6 {[%clk 0:02:57]} 4. Nc3 {[%clk 0:03:01]}  g6 {[%clk 0:02:57]} 5. d3 {[%clk 0:03:01]}  Bg7 {[%clk 0:02:58]} 6. e4 {[%clk 0:03:02]}  O-O {[%clk 0:02:58]} 7. Nge2 {[%clk 0:03:02]}  d6 {[%clk 0:02:58]} 8. O-O {[%clk 0:03:03]}  Bg4 {[%clk 0:02:57]} 9. f3 {[%clk 0:03:03]}  Bd7 {[%clk 0:02:56]} 10. h3 {[%clk 0:03:03]}  e5 {[%clk 0:02:56]} 11. f4 {[%clk 0:03:01]}  Qc8 {[%clk 0:02:53]} 12. Kh2 {[%clk 0:03:01]}  Nh5 {[%clk 0:02:51]} 13. f5 {[%clk 0:02:57]}  Nf6 {[%clk 0:02:41]} 14. g4 {[%clk 0:02:56]}  Nd4 {[%clk 0:02:40]} 15. Nxd4 {[%clk 0:02:54]}  cxd4 {[%clk 0:02:39]} 16. Nd5 {[%clk 0:02:54]}  Nxd5 {[%clk 0:02:39]} 17. cxd5 {[%clk 0:02:54]}  f6 {[%clk 0:02:38]} 18. fxg6 {[%clk 0:02:54]}  hxg6 {[%clk 0:02:38]} 19. Bd2 {[%clk 0:02:54]}  Kf7 {[%clk 0:02:29]} 20. Rc1 {[%clk 0:02:53]}  Qd8 {[%clk 0:02:26]} 21. g5 {[%clk 0:02:44]}  f5 {[%clk 0:02:26]} 22. exf5 {[%clk 0:02:45]}  Bxf5 {[%clk 0:02:26]} 23. Be4 {[%clk 0:02:43]}  Kg8 {[%clk 0:02:23]} 24. Bxf5 {[%clk 0:02:41]}  Rxf5 {[%clk 0:02:22]} 25. Rxf5 {[%clk 0:02:41]}  gxf5 {[%clk 0:02:22]} 26. Qh5 {[%clk 0:02:42]}  f4 {[%clk 0:02:17]} 27. Qg6 {[%clk 0:02:39]}  Qe8 {[%clk 0:02:16]} 28. Qxd6 {[%clk 0:02:37]}  Qh5 {[%clk 0:02:14]} 29. Qe6+ {[%clk 0:02:34]}  Kh8 {[%clk 0:02:13]} 30. Qg4 {[%clk 0:02:28]}  Qxg4 {[%clk 0:02:13]} 31. hxg4 {[%clk 0:02:28]}  Re8 {[%clk 0:02:07]} 32. Kg2 {[%clk 0:02:26]}  e4 {[%clk 0:02:05]} 33. dxe4 {[%clk 0:02:26]}  Rxe4 {[%clk 0:02:04]} 34. Kf3 {[%clk 0:02:27]}  Re5 {[%clk 0:02:00]} 35. g6 {[%clk 0:02:27]}  Rxd5 {[%clk 0:01:59]} 36. Rc8+ {[%clk 0:02:26]} 1-0


[Site "https://www.chess.com"]

[Event "Titled Tuesday Blitz March 01 Early 2022"]
[White "Silva, Miguel Antonio Neto"]
[Black "Kucuksari, Kaan"]
[WhiteFideId "1911929"]
[BlackFideId "6380166"]
[WhiteElo "2204"]
[BlackElo "2305"]
[Result "1-0"]
[Round "07"]
[TimeControl "180+1"]
[Date "2022.03.01"]
[WhiteClock "0:01:46"]
[BlackClock "0:02:11"]

1. e4 {[%clk 0:03:00]}  c5 {[%clk 0:02:58]} 2. Nf3 {[%clk 0:02:55]}  Nc6 {[%clk 0:02:58]} 3. Bb5 {[%clk 0:02:50]}  g6 {[%clk 0:02:57]} 4. Bxc6 {[%clk 0:02:48]}  bxc6 {[%clk 0:02:55]} 5. O-O {[%clk 0:02:39]}  Bg7 {[%clk 0:02:55]} 6. Nc3 {[%clk 0:02:29]}  e5 {[%clk 0:02:50]} 7. d3 {[%clk 0:02:26]}  Ne7 {[%clk 0:02:43]} 8. a3 {[%clk 0:02:24]}  d5 {[%clk 0:02:39]} 9. Na4 {[%clk 0:02:21]}  c4 {[%clk 0:02:39]} 10. dxc4 {[%clk 0:02:17]}  dxe4 {[%clk 0:02:39]} 11. Qxd8+ {[%clk 0:02:14]}  Kxd8 {[%clk 0:02:40]} 12. Ng5 {[%clk 0:02:11]}  f5 {[%clk 0:02:40]} 13. Nf7+ {[%clk 0:02:07]}  Kc7 {[%clk 0:02:40]} 14. Nxh8 {[%clk 0:02:08]}  Bxh8 {[%clk 0:02:41]} 15. Bd2 {[%clk 0:02:04]}  Be6 {[%clk 0:02:40]} 16. Ba5+ {[%clk 0:02:01]}  Kc8 {[%clk 0:02:40]} 17. b3 {[%clk 0:02:00]}  Bf6 {[%clk 0:02:23]} 18. Rfd1 {[%clk 0:01:55]}  Ng8 {[%clk 0:02:23]} 19. Rd6 {[%clk 0:01:50]}  Bd7 {[%clk 0:02:19]} 20. Rad1 {[%clk 0:01:49]}  Be8 {[%clk 0:02:18]} 21. Rd8+ {[%clk 0:01:45]}  Bxd8 {[%clk 0:02:17]} 22. Rxd8+ {[%clk 0:01:46]}  Kb7 {[%clk 0:02:11]} 23. Nc5# {[%clk 0:01:46]} 1-0


[Site "https://www.chess.com"]

[Event "Titled Tuesday Blitz March 01 Early 2022"]
[White "Sinitsina, Anastassia"]
[Black "Vantika, Agrawal"]
[WhiteFideId "4504640"]
[BlackFideId "25050389"]
[WhiteElo "2144"]
[BlackElo "2075"]
[Result "0-1"]
[Round "07"]
[TimeControl "180+1"]
[Date "2022.03.01"]
[WhiteClock "0:00:10"]
[BlackClock "0:00:38"]

1. Nf3 {[%clk 0:03:00]}  Nf6 {[%clk 0:02:56]} 2. g3 {[%clk 0:03:01]}  g6 {[%clk 0:02:56]} 3. Bg2 {[%clk 0:03:02]}  Bg7 {[%clk 0:02:57]} 4. O-O {[%clk 0:03:02]}  O-O {[%clk 0:02:58]} 5. d4 {[%clk 0:03:03]}  d6 {[%clk 0:02:59]} 6. c4 {[%clk 0:03:03]}  Nbd7 {[%clk 0:02:59]} 7. b3 {[%clk 0:03:03]}  e5 {[%clk 0:03:00]} 8. dxe5 {[%clk 0:03:03]}  dxe5 {[%clk 0:03:00]} 9. Bb2 {[%clk 0:03:00]}  e4 {[%clk 0:02:59]} 10. Ne1 {[%clk 0:02:57]}  Re8 {[%clk 0:02:56]} 11. Nc2 {[%clk 0:02:52]}  c6 {[%clk 0:02:56]} 12. Nc3 {[%clk 0:02:48]}  a5 {[%clk 0:02:54]} 13. Ne3 {[%clk 0:02:45]}  Qc7 {[%clk 0:02:53]} 14. Qc2 {[%clk 0:02:43]}  Nc5 {[%clk 0:02:52]} 15. Rad1 {[%clk 0:02:41]}  h5 {[%clk 0:02:30]} 16. a3 {[%clk 0:02:11]}  Qe7 {[%clk 0:02:09]} 17. b4 {[%clk 0:01:54]}  axb4 {[%clk 0:02:09]} 18. axb4 {[%clk 0:01:55]}  Ncd7 {[%clk 0:02:00]} 19. c5 {[%clk 0:01:47]}  b6 {[%clk 0:01:53]} 20. Ra1 {[%clk 0:01:01]}  Rxa1 {[%clk 0:01:51]} 21. Rxa1 {[%clk 0:01:01]}  bxc5 {[%clk 0:01:51]} 22. b5 {[%clk 0:01:02]}  cxb5 {[%clk 0:01:47]} 23. Nxb5 {[%clk 0:00:58]}  Bb7 {[%clk 0:01:46]} 24. Ra7 {[%clk 0:00:57]}  Bc6 {[%clk 0:01:46]} 25. Nc3 {[%clk 0:00:53]}  Qe6 {[%clk 0:01:43]} 26. Ra6 {[%clk 0:00:48]}  Nb8 {[%clk 0:01:38]} 27. Rb6 {[%clk 0:00:47]}  Nfd7 {[%clk 0:01:37]} 28. Rb3 {[%clk 0:00:42]}  Na6 {[%clk 0:01:34]} 29. Ra3 {[%clk 0:00:36]}  Nb4 {[%clk 0:01:33]} 30. Qd1 {[%clk 0:00:36]}  Nb6 {[%clk 0:01:28]} 31. Ra5 {[%clk 0:00:31]}  Qe7 {[%clk 0:01:21]} 32. Qa1 {[%clk 0:00:26]}  Bd4 {[%clk 0:01:17]} 33. Ncd1 {[%clk 0:00:25]}  Rd8 {[%clk 0:01:12]} 34. Bc3 {[%clk 0:00:19]}  Kh7 {[%clk 0:00:56]} 35. Qc1 {[%clk 0:00:18]}  Qe6 {[%clk 0:00:48]} 36. Bxb4 {[%clk 0:00:15]}  cxb4 {[%clk 0:00:48]} 37. Ra6 {[%clk 0:00:15]}  Bb5 {[%clk 0:00:45]} 38. Ra7 {[%clk 0:00:14]}  Bxe2 {[%clk 0:00:44]} 39. Qc7 {[%clk 0:00:14]}  Rd7 {[%clk 0:00:43]} 40. Qb8 {[%clk 0:00:10]}  Be5 {[%clk 0:00:38]} 0-1


[Site "https://www.chess.com"]

[Event "Titled Tuesday Blitz March 01 Early 2022"]
[White "Siva Mahadevan"]
[Black "Melian, Juan Sebastian"]
[WhiteFideId "25043153"]
[BlackFideId "3706575"]
[WhiteElo "2203"]
[BlackElo "1842"]
[Result "1-0"]
[Round "07"]
[TimeControl "180+1"]
[Date "2022.03.01"]
[WhiteClock "0:00:05"]
[BlackClock "0:00:03"]

1. e4 {[%clk 0:02:59]}  c5 {[%clk 0:02:58]} 2. Nf3 {[%clk 0:02:59]}  e6 {[%clk 0:02:58]} 3. d4 {[%clk 0:02:52]}  cxd4 {[%clk 0:02:59]} 4. Nxd4 {[%clk 0:02:48]}  a6 {[%clk 0:02:58]} 5. Nc3 {[%clk 0:02:47]}  b5 {[%clk 0:02:58]} 6. Bd3 {[%clk 0:02:46]}  Qb6 {[%clk 0:02:58]} 7. Nf3 {[%clk 0:02:46]}  Qc7 {[%clk 0:02:56]} 8. O-O {[%clk 0:02:45]}  d6 {[%clk 0:02:50]} 9. Re1 {[%clk 0:02:43]}  Bb7 {[%clk 0:02:46]} 10. a4 {[%clk 0:02:38]}  b4 {[%clk 0:02:45]} 11. Na2 {[%clk 0:02:35]}  Nc6 {[%clk 0:02:33]} 12. Bd2 {[%clk 0:02:33]}  Qb6 {[%clk 0:02:25]} 13. c3 {[%clk 0:02:27]}  bxc3 {[%clk 0:02:21]} 14. Nxc3 {[%clk 0:02:27]}  Nf6 {[%clk 0:02:17]} 15. a5 {[%clk 0:02:18]}  Qd8 {[%clk 0:02:13]} 16. Na4 {[%clk 0:02:09]}  Be7 {[%clk 0:02:09]} 17. Nb6 {[%clk 0:02:06]}  Rb8 {[%clk 0:02:08]} 18. Bc3 {[%clk 0:02:04]}  O-O {[%clk 0:02:06]} 19. Qa4 {[%clk 0:02:01]}  Nd7 {[%clk 0:02:00]} 20. Nxd7 {[%clk 0:01:54]}  Qxd7 {[%clk 0:01:59]} 21. Rac1 {[%clk 0:01:53]}  Rfc8 {[%clk 0:01:58]} 22. Red1 {[%clk 0:01:29]}  Ne5 {[%clk 0:01:49]} 23. Qxd7 {[%clk 0:00:59]}  Nxd7 {[%clk 0:01:50]} 24. Bd4 {[%clk 0:00:56]}  Bd8 {[%clk 0:01:38]} 25. b4 {[%clk 0:00:54]}  Be7 {[%clk 0:01:35]} 26. Be3 {[%clk 0:00:51]}  Nf6 {[%clk 0:01:28]} 27. Nd2 {[%clk 0:00:40]}  d5 {[%clk 0:01:22]} 28. e5 {[%clk 0:00:29]}  Nd7 {[%clk 0:01:20]} 29. b5 {[%clk 0:00:30]}  Nxe5 {[%clk 0:01:13]} 30. bxa6 {[%clk 0:00:20]}  Nxd3 {[%clk 0:01:07]} 31. axb7 {[%clk 0:00:20]}  Nxc1 {[%clk 0:00:15]} 32. bxc8=Q+ {[%clk 0:00:21]}  Rxc8 {[%clk 0:00:13]} 33. a6 {[%clk 0:00:22]}  d4 {[%clk 0:00:12]} 34. Nc4 {[%clk 0:00:14]}  dxe3 {[%clk 0:00:06]} 35. Rxc1 {[%clk 0:00:12]}  e2 {[%clk 0:00:06]} 36. f3 {[%clk 0:00:08]}  g6 {[%clk 0:00:05]} 37. Kf2 {[%clk 0:00:08]}  Bc5+ {[%clk 0:00:03]} 38. Kxe2 {[%clk 0:00:08]}  Ra8 {[%clk 0:00:04]} 39. Ra1 {[%clk 0:00:08]}  Kf8 {[%clk 0:00:03]} 40. Ra4 {[%clk 0:00:08]}  Ke7 {[%clk 0:00:03]} 41. Ne5 {[%clk 0:00:09]}  f6 {[%clk 0:00:02]} 42. Nd3 {[%clk 0:00:09]}  Kd6 {[%clk 0:00:02]} 43. h4 {[%clk 0:00:08]}  Bb6 {[%clk 0:00:02]} 44. h5 {[%clk 0:00:09]}  Kc6 {[%clk 0:00:02]} 45. hxg6 {[%clk 0:00:09]}  hxg6 {[%clk 0:00:02]} 46. Rg4 {[%clk 0:00:09]}  g5 {[%clk 0:00:03]} 47. Re4 {[%clk 0:00:08]}  e5 {[%clk 0:00:02]} 48. Rc4+ {[%clk 0:00:08]}  Kb5 {[%clk 0:00:03]} 49. Rc1 {[%clk 0:00:08]}  Rxa6 {[%clk 0:00:03]} 50. Rb1+ {[%clk 0:00:08]}  Kc4 {[%clk 0:00:03]} 51. Rb4+ {[%clk 0:00:07]}  Kd5 {[%clk 0:00:03]} 52. Rb2 {[%clk 0:00:07]}  Bd4 {[%clk 0:00:03]} 53. Rc2 {[%clk 0:00:07]}  Ke6 {[%clk 0:00:04]} 54. Nb4 {[%clk 0:00:07]}  Ra4 {[%clk 0:00:02]} 55. Nc6 {[%clk 0:00:07]}  Kf5 {[%clk 0:00:02]} 56. Ne7+ {[%clk 0:00:07]}  Ke6 {[%clk 0:00:02]} 57. Nc8 {[%clk 0:00:06]}  Ra6 {[%clk 0:00:02]} 58. g4 {[%clk 0:00:06]}  Kd7 {[%clk 0:00:03]} 59. Rc4 {[%clk 0:00:02]}  Ra2+ {[%clk 0:00:02]} 60. Kd3 {[%clk 0:00:03]}  Ra3+ {[%clk 0:00:03]} 61. Ke4 {[%clk 0:00:03]}  Re3+ {[%clk 0:00:03]} 62. Kd5 {[%clk 0:00:04]}  Rxf3 {[%clk 0:00:03]} 63. Nd6 {[%clk 0:00:04]}  Rd3 {[%clk 0:00:02]} 64. Ke4 {[%clk 0:00:05]}  Rd1 {[%clk 0:00:03]} 65. Nf5 {[%clk 0:00:05]}  Bg1 {[%clk 0:00:02]} 66. Rc2 {[%clk 0:00:05]}  Ke6 {[%clk 0:00:02]} 67. Rc6+ {[%clk 0:00:05]}  Kf7 {[%clk 0:00:02]} 68. Rc7+ {[%clk 0:00:05]}  Kf8 {[%clk 0:00:03]} 69. Rc8+ {[%clk 0:00:05]} 1-0


[Site "https://www.chess.com"]

[Event "Titled Tuesday Blitz March 01 Early 2022"]
[White "Sovetbekova, Nurai"]
[Black "Polster, Christian"]
[WhiteFideId "13801910"]
[BlackFideId "12965081"]
[WhiteElo "1545"]
[BlackElo "2304"]
[Result "1-0"]
[Round "07"]
[TimeControl "180+1"]
[Date "2022.03.01"]
[WhiteClock "0:00:48"]
[BlackClock "0:00:05"]

1. d4 {[%clk 0:03:00]}  d5 {[%clk 0:02:57]} 2. c4 {[%clk 0:02:59]}  e6 {[%clk 0:02:57]} 3. Nf3 {[%clk 0:02:59]}  c6 {[%clk 0:02:57]} 4. g3 {[%clk 0:02:57]}  Nf6 {[%clk 0:02:54]} 5. Bg2 {[%clk 0:02:57]}  Nbd7 {[%clk 0:02:52]} 6. O-O {[%clk 0:02:56]}  Be7 {[%clk 0:02:47]} 7. Qc2 {[%clk 0:02:54]}  Ne4 {[%clk 0:02:47]} 8. Nbd2 {[%clk 0:02:48]}  f5 {[%clk 0:02:42]} 9. c5 {[%clk 0:02:34]}  O-O {[%clk 0:02:15]} 10. b4 {[%clk 0:02:32]}  a5 {[%clk 0:02:12]} 11. b5 {[%clk 0:02:28]}  cxb5 {[%clk 0:02:12]} 12. Rb1 {[%clk 0:02:24]}  b4 {[%clk 0:02:10]} 13. a3 {[%clk 0:02:19]}  Nc3 {[%clk 0:02:05]} 14. Rb3 {[%clk 0:02:12]}  Nxe2+ {[%clk 0:01:57]} 15. Kh1 {[%clk 0:02:12]}  Nxc1 {[%clk 0:01:57]} 16. Rxc1 {[%clk 0:02:13]}  bxa3 {[%clk 0:01:53]} 17. Rxa3 {[%clk 0:02:12]}  b6 {[%clk 0:01:50]} 18. Rc3 {[%clk 0:02:09]}  bxc5 {[%clk 0:01:45]} 19. dxc5 {[%clk 0:02:10]}  Qc7 {[%clk 0:01:33]} 20. Nb3 {[%clk 0:02:03]}  a4 {[%clk 0:01:30]} 21. Nbd4 {[%clk 0:01:59]}  Nb8 {[%clk 0:00:53]} 22. Qe2 {[%clk 0:01:30]}  Bf6 {[%clk 0:00:41]} 23. Nxe6 {[%clk 0:01:24]}  Qe7 {[%clk 0:00:35]} 24. Re3 {[%clk 0:01:22]}  Bxe6 {[%clk 0:00:18]} 25. Rxe6 {[%clk 0:01:20]}  Qc7 {[%clk 0:00:18]} 26. Ne5 {[%clk 0:01:11]}  Rd8 {[%clk 0:00:17]} 27. Qa2 {[%clk 0:00:59]}  Bxe5 {[%clk 0:00:13]} 28. Bxd5 {[%clk 0:00:59]}  Rxd5 {[%clk 0:00:12]} 29. Qxd5 {[%clk 0:00:57]}  Kf8 {[%clk 0:00:12]} 30. Rxe5 {[%clk 0:00:49]}  Ra5 {[%clk 0:00:11]} 31. Rxf5+ {[%clk 0:00:48]}  Ke8 {[%clk 0:00:09]} 32. Re1+ {[%clk 0:00:48]}  Qe5 {[%clk 0:00:05]} 33. Rexe5# {[%clk 0:00:48]} 1-0


[Site "https://www.chess.com"]

[Event "Titled Tuesday Blitz March 01 Early 2022"]
[White "Thomas, Anysia"]
[Black "Poormosavi, Seyed Kian"]
[WhiteFideId "670472"]
[BlackFideId "12585807"]
[WhiteElo "2002"]
[BlackElo "2116"]
[Result "0-1"]
[Round "07"]
[TimeControl "180+1"]
[Date "2022.03.01"]
[WhiteClock "0:00:01"]
[BlackClock "0:00:30"]

1. d4 {[%clk 0:03:00]}  Nf6 {[%clk 0:02:58]} 2. c4 {[%clk 0:03:01]}  e6 {[%clk 0:02:52]} 3. Nf3 {[%clk 0:02:59]}  d5 {[%clk 0:02:44]} 4. g3 {[%clk 0:02:59]}  dxc4 {[%clk 0:02:44]} 5. Bg2 {[%clk 0:02:58]}  Bd7 {[%clk 0:02:44]} 6. O-O {[%clk 0:02:57]}  Bc6 {[%clk 0:02:44]} 7. Nbd2 {[%clk 0:02:37]}  b5 {[%clk 0:02:41]} 8. Qc2 {[%clk 0:02:30]}  Be7 {[%clk 0:02:27]} 9. a4 {[%clk 0:02:25]}  a6 {[%clk 0:02:26]} 10. b3 {[%clk 0:02:23]}  cxb3 {[%clk 0:02:21]} 11. Qxb3 {[%clk 0:02:18]}  O-O {[%clk 0:02:22]} 12. axb5 {[%clk 0:02:08]}  Bxb5 {[%clk 0:02:20]} 13. Re1 {[%clk 0:01:55]}  Nc6 {[%clk 0:02:12]} 14. Bb2 {[%clk 0:01:52]}  Qd5 {[%clk 0:02:09]} 15. Qc2 {[%clk 0:01:31]}  Nb4 {[%clk 0:02:06]} 16. Qxc7 {[%clk 0:01:19]}  Bd6 {[%clk 0:02:01]} 17. Qa5 {[%clk 0:01:16]}  Bc6 {[%clk 0:01:39]} 18. Qxd5 {[%clk 0:00:56]}  Bxd5 {[%clk 0:01:38]} 19. Rec1 {[%clk 0:00:51]}  Rfc8 {[%clk 0:01:28]} 20. Rxc8+ {[%clk 0:00:36]}  Rxc8 {[%clk 0:01:29]} 21. Ne5 {[%clk 0:00:20]}  Bxg2 {[%clk 0:01:02]} 22. Kxg2 {[%clk 0:00:20]}  Rc2 {[%clk 0:01:02]} 23. Ndc4 {[%clk 0:00:18]}  Bxe5 {[%clk 0:01:00]} 24. dxe5 {[%clk 0:00:18]}  Ne4 {[%clk 0:00:58]} 25. Bd4 {[%clk 0:00:16]}  Rxc4 {[%clk 0:00:55]} 26. Be3 {[%clk 0:00:15]}  h6 {[%clk 0:00:53]} 27. h4 {[%clk 0:00:13]}  Nc2 {[%clk 0:00:49]} 28. Rxa6 {[%clk 0:00:11]}  Nxe3+ {[%clk 0:00:49]} 29. fxe3 {[%clk 0:00:12]}  Kh7 {[%clk 0:00:47]} 30. Kf3 {[%clk 0:00:12]}  h5 {[%clk 0:00:45]} 31. Ra7 {[%clk 0:00:11]}  Kg6 {[%clk 0:00:45]} 32. Ra6 {[%clk 0:00:09]}  Nd2+ {[%clk 0:00:45]} 33. Kf2 {[%clk 0:00:08]}  Re4 {[%clk 0:00:44]} 34. Ra5 {[%clk 0:00:07]}  Rg4 {[%clk 0:00:40]} 35. Rb5 {[%clk 0:00:05]}  Ne4+ {[%clk 0:00:41]} 36. Kf3 {[%clk 0:00:04]}  Nxg3 {[%clk 0:00:41]} 37. Rb1 {[%clk 0:00:01]}  Nf5 {[%clk 0:00:40]} 38. e4 {[%clk 0:00:01]}  Nxh4+ {[%clk 0:00:38]} 39. Ke3 {[%clk 0:00:01]}  Ng2+ {[%clk 0:00:36]} 40. Kd4 {[%clk 0:00:01]}  h4 {[%clk 0:00:31]} 41. Rh1 {[%clk 0:00:01]}  Kg5 {[%clk 0:00:31]} 42. Rh3 {[%clk 0:00:01]}  Nf4 {[%clk 0:00:31]} 43. Rf3 {[%clk 0:00:01]}  Nxe2+ {[%clk 0:00:30]} 0-1


[Site "https://www.chess.com"]

[Event "Titled Tuesday Blitz March 01 Early 2022"]
[White "Todorovic, Bojan"]
[Black "Martin Duque, Jesus"]
[WhiteFideId "917087"]
[BlackFideId "2208954"]
[WhiteElo "2266"]
[BlackElo "2243"]
[Result "0-1"]
[Round "07"]
[TimeControl "180+1"]
[Date "2022.03.01"]
[WhiteClock "0:00:06"]
[BlackClock "0:01:26"]

1. Nf3 {[%clk 0:02:59]}  Nf6 {[%clk 0:02:58]} 2. g3 {[%clk 0:02:59]}  b6 {[%clk 0:02:58]} 3. Bg2 {[%clk 0:02:58]}  Bb7 {[%clk 0:02:59]} 4. O-O {[%clk 0:02:58]}  c5 {[%clk 0:02:59]} 5. c4 {[%clk 0:02:57]}  g6 {[%clk 0:03:00]} 6. Nc3 {[%clk 0:02:57]}  Bg7 {[%clk 0:02:59]} 7. d3 {[%clk 0:02:55]}  Nc6 {[%clk 0:02:59]} 8. Bf4 {[%clk 0:02:45]}  d6 {[%clk 0:02:58]} 9. Qc1 {[%clk 0:02:37]}  h6 {[%clk 0:02:58]} 10. Bd2 {[%clk 0:02:36]}  e5 {[%clk 0:02:56]} 11. a3 {[%clk 0:02:31]}  Qd7 {[%clk 0:02:55]} 12. Rb1 {[%clk 0:02:26]}  Nd4 {[%clk 0:02:52]} 13. Nxd4 {[%clk 0:02:15]}  Bxg2 {[%clk 0:02:47]} 14. Kxg2 {[%clk 0:02:13]}  cxd4 {[%clk 0:02:46]} 15. Na2 {[%clk 0:02:01]}  Rc8 {[%clk 0:02:46]} 16. Qd1 {[%clk 0:01:56]}  d5 {[%clk 0:02:45]} 17. b3 {[%clk 0:01:53]}  h5 {[%clk 0:02:43]} 18. Bg5 {[%clk 0:01:42]}  h4 {[%clk 0:02:43]} 19. Bxf6 {[%clk 0:01:38]}  Bxf6 {[%clk 0:02:42]} 20. Rh1 {[%clk 0:01:28]}  e4 {[%clk 0:02:41]} 21. cxd5 {[%clk 0:01:23]}  Qxd5 {[%clk 0:02:34]} 22. Nb4 {[%clk 0:01:22]}  h3+ {[%clk 0:02:30]} 23. Kf1 {[%clk 0:01:17]}  Qb7 {[%clk 0:02:30]} 24. dxe4 {[%clk 0:01:15]}  Qxe4 {[%clk 0:02:28]} 25. f3 {[%clk 0:01:15]}  Qe6 {[%clk 0:02:20]} 26. Qd2 {[%clk 0:01:09]}  Rc3 {[%clk 0:02:07]} 27. Nd3 {[%clk 0:00:59]}  Rxb3 {[%clk 0:02:07]} 28. Rxb3 {[%clk 0:00:58]}  Qxb3 {[%clk 0:02:08]} 29. Kf2 {[%clk 0:00:54]}  O-O {[%clk 0:02:06]} 30. Qf4 {[%clk 0:00:49]}  Bg7 {[%clk 0:02:06]} 31. Qd6 {[%clk 0:00:35]}  Re8 {[%clk 0:02:00]} 32. Rc1 {[%clk 0:00:34]}  Bf8 {[%clk 0:01:56]} 33. Qd7 {[%clk 0:00:30]}  Re3 {[%clk 0:01:40]} 34. Rc8 {[%clk 0:00:22]}  Qxa3 {[%clk 0:01:40]} 35. Rc7 {[%clk 0:00:20]}  Re7 {[%clk 0:01:38]} 36. Qd8 {[%clk 0:00:14]}  Rxc7 {[%clk 0:01:36]} 37. Qxc7 {[%clk 0:00:15]}  b5 {[%clk 0:01:32]} 38. Ne5 {[%clk 0:00:15]}  Qe7 {[%clk 0:01:32]} 39. Qb8 {[%clk 0:00:13]}  a5 {[%clk 0:01:29]} 40. Qxb5 {[%clk 0:00:10]}  Qc5 {[%clk 0:01:27]} 41. Qe8 {[%clk 0:00:09]}  d3+ {[%clk 0:01:27]} 42. e3 {[%clk 0:00:07]}  Qc2+ {[%clk 0:01:27]} 43. Kf1 {[%clk 0:00:06]}  Qe2+ {[%clk 0:01:26]} 44. Kg1 {[%clk 0:00:06]}  Qe1# {[%clk 0:01:26]} 0-1


[Site "https://www.chess.com"]